Cogmind - Beta 16.1 @@@ ROGUE MODE // 2026.02.22 @ 15:47:03 Player: winnking222 Result: Self-destructed Performance ------------- Evolutions (6) 3000 Regions Visited (11) 2200 Robots Destroyed (36) 180 Value Destroyed (1040) 1040 Prototype IDs (41) 820 Alien Tech Used (1) 200 Bonus (3026) 3026 TOTAL SCORE: 10466 Bonus ------- Follower Combat Kills 1926 Entered DSFs 500 Registered with UFD 300 Met Zhirov 300 Cogmind --------- Core Integrity 1011/1150 Matter 66/300 Energy 340/340 System Corruption 2% Temperature Cool (12) Movement Walking (190) Ox1 Location -4/Factory Parts ------- > --- POWER (2) -------- Heavy Antimatter Reactor > --- PROPULSION (5) --- Advanced Myomer Leg Advanced Myomer Leg Advanced Myomer Leg > --- UTILITY (6) ------ High-capacity Storage Unit Long-range Sensor Array Advanced Signal Interpreter Improved Light Armor Plating > --- WEAPON (6) ------- Coil Gun 1B-0RG's Assimilator > --- INVENTORY (20) --- Micro Fission Core Antimatter Reactor Light Antimatter Reactor Cooling System High-capacity Storage Unit Compact Matter Pod (0) Compact Matter Pod (0) Compact Matter Pod (0) Long-range Sensor Array Matter Filter Precision Energy Filter Quantum Capacitor Transdimensional Reconstructor HERF Cannon HERF Cannon Railgun Improved Plasma Cutter Peak State ------------ > --- POWER ------------ Light Nuclear Core Micro Fission Core > --- PROPULSION ------- Advanced Treads Flexi-carbon Leg Antigrav System > --- UTILITY ---------- High-capacity Storage Unit Improved Sensor Array Improved Terrain Scanner Experimental Terrain Scan Processor Hardened Medium Armor Plating Improved Hacking Suite Rainbow Chip > --- WEAPON ----------- 1B-0RG's Assimilator Junk Cannon > --- INVENTORY -------- Flexi-carbon Leg Cooling System Seismic Detector Improved Light Armor Plating Improved Medium Armor Plating Coil Gun Improved Plasma Cutter DRS Beacon [Rating: 139] Favorites ----------- Power Light Nuclear Core Engine Subdweller Power Source Power Core Light Nuclear Core Reactor Heavy Antimatter Reactor Propulsion Light Treads Treads Light Treads Leg Advanced Myomer Leg Wheel Wheel Hover Unit Antigrav System Utility High-capacity Storage Unit Device Seismic Detector Storage High-capacity Storage Unit Processor Rainbow Chip Hackware Improved Hacking Suite Protection Improved Medium Armor Plating Weapon Subdweller Laser Energy Gun Subdweller Laser Energy Cannon HERF Cannon Ballistic Gun Assault Rifle Ballistic Cannon Light Cannon Launcher Improved Proton Missile Launcher Special Weapon Junk Cannon Special Melee Weapon 1B-0RG's Assimilator Build | -11 -10 -10 -8 -6 -6 -5 -5 -5 -5 -4 -4 ------- Run | Yrd Mat Sub Scr Fac DSF Fac Upp Upp Zhi Pro Fac Slots Evolved 12 | . . . . 8 . 2 . . . . 2 Power 1 | . . . . 1 . . . . . . . Propulsion 3 | . . . . . . 1 . . . . 2 Utility 4 | . . . . 3 . 1 . . . . . Weapon 4 | . . . . 4 . . . . . . . Parts Attached 69 | 7 5 7 6 6 3 12 2 4 7 4 6 Power 10 | 1 . 2 1 1 . 3 . . 1 1 . Engine 5 | 1 . 2 1 . . 1 . . . . . Core 4 | . . . . 1 . 2 . . . 1 . Reactor 1 | . . . . . . . . . 1 . . Propulsion 20 | 2 1 1 3 . 1 6 1 2 3 . . Treads 10 | 2 1 1 2 . . 1 1 2 . . . Leg 4 | . . . . . . 1 . . 3 . . Wheel 4 | . . . 1 . 1 2 . . . . . Hover 2 | . . . . . . 2 . . . . . Flight . | . . . . . . . . . . . . Utility 27 | 2 2 1 1 4 1 3 1 1 3 3 5 Device 5 | 1 . . . 1 . 1 . . 1 . 1 Storage 6 | 1 2 . 1 . . . . . 1 . 1 Processor 4 | . . . . 2 . . . . . 1 1 Hackware 4 | . . . . . . 1 . 1 . . 2 Protection 8 | . . 1 . 1 1 1 1 . 1 2 . Artifact . | . . . . . . . . . . . . Weapon 12 | 2 2 3 1 1 1 . . 1 . . 1 Energy Gun 4 | 1 . 3 . . . . . . . . . Energy Cannon 1 | . . . . . . . . 1 . . . Ballistic Gun 2 | 1 . . . . . . . . . . 1 Ballistic Cannon 2 | . 2 . . . . . . . . . . Launcher 1 | . . . . . 1 . . . . . . Special Weapon 1 | . . . 1 . . . . . . . . Impact Weapon . | . . . . . . . . . . . . Slashing Weapon . | . . . . . . . . . . . . Piercing Weapon . | . . . . . . . . . . . . Special Melee Weapon 1 | . . . . 1 . . . . . . . Unidentified Prototypes 7 | . . . 1 1 . . . . 5 . . Parts Lost 24 | . . 4 . . 3 6 . 3 . 5 3 Power 6 | . . 2 . . . 2 . . . 1 1 Propulsion 7 | . . 1 . . 1 3 . 2 . . . Utility 9 | . . . . . 1 1 . 1 . 4 2 Weapon 2 | . . 1 . . 1 . . . . . . Highest Loss Streak 5 | . . 3 . . 3 3 . 3 . 5 2 To Critical Strikes 1 | . . . . . 1 . . . . . . Average Backups 13 | 4 9 17 13 11 9 8 11 14 16 15 14 Power . | . 1 . . . . . . . 1 1 2 Propulsion 3 | 3 5 7 3 3 2 1 3 2 . . . Utility 4 | . 1 3 5 4 4 4 4 7 7 4 6 Weapon 3 | . 1 5 2 1 1 1 2 3 6 7 3 Tool/Special . | . . . . . . . . . . . . Unused Backups 42 | . 1 5 12 . . 1 . . 3 . 20 Power 4 | . . . 1 . . . . . . . 3 Propulsion 8 | . . 3 3 . . . . . 2 . . Utility 12 | . . . 2 . . . . . 1 . 9 Weapon 15 | . 1 2 6 . . . . . . . 6 Tool/Special 3 | . . . . . . 1 . . . . 2 Average Slot Usage (%) 79 | . 100 99 89 54 58 58 63 66 67 66 61 Engine 7 | . 14 13 14 5 5 3 . . . . . Core 3 | . . . . 4 5 4 9 9 6 4 3 Treads 16 | . 28 27 26 5 3 2 4 9 7 . . Leg 2 | . . . . . . 1 . . 9 17 15 Wheel 1 | . . . 1 5 6 3 4 3 . . . Device 11 | . 14 12 14 9 10 9 9 9 12 13 6 Storage 9 | . 14 14 14 5 5 4 4 4 5 5 6 Processor 2 | . . . . 8 10 9 9 7 . . 1 Hackware 2 | . . . . . . 2 4 4 11 4 4 Protection 2 | . . 1 . 4 4 4 4 4 1 6 10 Energy Gun 7 | . 1 23 10 . . . . . . . . Ballistic Cannon 2 | . 25 4 . . . . . . . . . Special Weapon 2 | . . . 7 1 . 1 4 3 . . . Special Melee Weapon 2 | . . . . 4 5 4 4 4 5 5 5 Peak Build Rating 139 | 7 8 20 33 109 113 139 138 137 128 130 135 Average Rating 70 | 5 7 12 25 104 109 121 135 133 121 125 131 On Entrance 77 | . 7 8 20 33 109 106 138 137 119 128 126 Avg Prop Armor Cover (%) 8 | . . . 12 7 6 5 6 10 . . . Naked Turns . | . . . . . . . . . . . . Heaviest Build 139 | 12 50 56 64 118 126 133 129 128 125 139 139 Greatest Support 90 | 40 40 40 40 12 28 28 10 78 90 90 90 Greatest Overweight (x) 12 | 1 1 1 5 9 10 12 12 12 3 1 1 Average Overweight (x) 3 | . . 1 1 8 6 6 12 10 1 1 1 Largest Inventory Capacity 20 | 8 20 20 20 20 20 20 20 20 20 20 20 Average Capacity 19 | 7 15 20 20 20 20 20 20 20 20 20 20 Most Carried 20 | 8 12 20 20 20 12 13 15 19 20 18 19 Average Carried 15 | 5 9 17 18 12 11 10 12 15 17 15 14 Final Capacity 20 | 8 20 20 20 20 20 20 20 20 20 20 20 Final Carried 20 | 7 12 20 20 12 11 9 15 18 17 17 18 Class Distribution -------------------- 31% | Mutant 28% | Scavenger-Mutant 23% | Scavenger-Assassin 7% | Hacker-Mutant 7% | Derelict-Mutant Dominant Class ---------------- Mutant | -10/Materials Scavenger-Mutant | -10/Subcaves Mutant | -8/Scraptown Derelict-Mutant | -6/Factory Derelict-Mutant | -6/DSF Derelict-Mutant | -5/Factory Scavenger-Assassin | -5/Upper Caves Scavenger-Assassin | -5/Upper Caves Hacker-Mutant | -5/Zhirov Mutant | -4/Proximity Caves Mutant | -4/Factory Resources | -11 -10 -10 -8 -6 -6 -5 -5 -5 -5 -4 -4 ----------- Run | Yrd Mat Sub Scr Fac DSF Fac Upp Upp Zhi Pro Fac Matter Collected 4334 | 282 189 265 70 . 242 735 448 595 . 1212 296 Remotely . | . . . . . . . . . . . . Salvage Created 1150 | 135 379 193 . . 402 . 41 . . . . Parts 75 | 17 28 13 . . 16 . 1 . . . . Haulers Intercepted 2 | . 2 . . . . . . . . . . Recyclers Shooed . | . . . . . . . . . . . . Parts Field Recycled . | . . . . . . . . . . . . Retrieved Matter . | . . . . . . . . . . . . Parts Self-Destructed 80 | . . 18 . . . . 9 10 . 43 . Prevented 12 | . . . . . . . 8 4 . . . Parts Restored . | . . . . . . . . . . . . Kills | -11 -10 -10 -8 -6 -6 -5 -5 -5 -5 -4 -4 ------- Run | Yrd Mat Sub Scr Fac DSF Fac Upp Upp Zhi Pro Fac Combat Hostiles Destroyed 23 | . 6 8 . . 7 . 2 . . . . Guns 2 | . . 2 . . . . . . . . . Cannons 14 | . 6 6 . . . . 2 . . . . AOE 6 | . . . . . 6 . . . . . . Classes Destroyed 11 | 2 5 1 . . 2 . 1 . . . . Worker 1 | . 1 . . . . . . . . . . Tunneler 3 | 3 . . . . . . . . . . . Hauler 2 | . 2 . . . . . . . . . . Recycler 2 | 1 1 . . . . . . . . . . Mechanic 1 | . 1 . . . . . . . . . . Watcher 3 | . 3 . . . . . . . . . . Swarmer 2 | . . . . . . . 2 . . . . Cutter 2 | . . . . . 2 . . . . . . Grunt 9 | . 6 . . . 3 . . . . . . Demolisher 3 | . . . . . 3 . . . . . . Subdweller 8 | . . 8 . . . . . . . . . Best Kill Streak 5 | 3 5 2 . . 3 . 2 . . . . Combat Bots Only 3 | . 2 2 . . 3 . 2 . . . . Max Kills in Single Turn 5 | 2 5 1 . . 3 . 1 . . . . Gunslinging . | . . . . . . . . . . . . Exploded 2 | . . . . . 2 . . . . . . Melee . | . . . . . . . . . . . . Uniques/NPCs Destroyed . | . . . . . . . . . . . . Combat | -11 -10 -10 -8 -6 -6 -5 -5 -5 -5 -4 -4 -------- Run | Yrd Mat Sub Scr Fac DSF Fac Upp Upp Zhi Pro Fac Hostile Shots Fired 304 | . 11 70 . . 32 78 5 25 . 51 32 Missed 84 | . 2 29 . . 7 18 2 6 . 14 6 Hits 220 | . 9 41 . . 25 60 3 19 . 37 26 Melee 2 | . . . . . . 2 . . . . . Projectile 218 | . 9 41 . . 25 58 3 19 . 37 26 AOE 16 | . . . . . 14 1 . . . 1 . Critical Strikes 14 | . . 1 . . 1 4 2 1 . 4 1 Damage Taken 5154 | . 108 858 . . 844 1183 187 428 . 847 699 Core 611 | . . 129 . . 97 140 . 42 . 64 139 Absorbed by Shields . | . . . . . . . . . . . . Regen/Repaired (Parts) 1024 | . . . . . 78 523 62 77 . 242 42 Core Remaining (%) 77 | 100 . . 48 . 88 . . . . 75 . Volleys Fired 107 | 4 18 56 . . 11 1 5 11 . . 1 Largest 2 | 2 2 2 . . 1 1 1 1 . . 1 Hottest 120 | 60 60 120 . . 43 . . 88 . . 30 Shots Fired 172 | 8 36 99 . . 11 1 5 11 . . 1 Gun 60 | 8 2 49 . . . . . . . . 1 Cannon 90 | . 34 50 . . . . . 6 . . . Launcher 11 | . . . . . 11 . . . . . . Special 11 | . . . . . . 1 5 5 . . . Kinetic 90 | 4 35 50 . . . . . . . . 1 Thermal 54 | 4 1 49 . . . . . . . . . Explosive . | . . . . . . . . . . . . Electromagnetic 17 | . . . . . 11 . . 6 . . . Impact 11 | . . . . . . 1 5 5 . . . Robot Hit Streak 10 | 3 8 10 . . 7 . 5 7 . . . Robot Miss Streak 2 | 1 2 2 . . 1 . . 1 . . . Penetration Max . | . . . . . . . . . . . . Secondary Targets . | . . . . . . . . . . . . Shots Hit Robots 95 | 4 26 51 . . 9 . 2 3 . . . Core Hits 45 | 4 15 13 . . 12 . . 1 . . . Critical Kills . | . . . . . . . . . . . . Critical Parts Destroyed . | . . . . . . . . . . . . Critical Strikes 4 | . . 4 . . . . . . . . . Blast 4 | . . 4 . . . . . . . . . Melee Attacks . | . . . . . . . . . . . . Impact . | . . . . . . . . . . . . Slashing . | . . . . . . . . . . . . Piercing . | . . . . . . . . . . . . Sneak Attacks . | . . . . . . . . . . . . Combat Hostiles . | . . . . . . . . . . . . Follow-up Attacks . | . . . . . . . . . . . . Damage Inflicted 2693 | 62 745 939 . . 673 . 132 142 . . . Guns 295 | 62 12 221 . . . . . . . . . Cannons 1278 | . 418 718 . . . . . 142 . . . Explosions 988 | . 315 . . . 673 . . . . . . Melee . | . . . . . . . . . . . . Ramming . | . . . . . . . . . . . . Kinetic 1178 | 42 418 718 . . . . . . . . . Thermal 319 | 20 12 221 . . 66 . . . . . . Explosive 315 | . 315 . . . . . . . . . . Electromagnetic 749 | . . . . . 607 . . 142 . . . Impact 132 | . . . . . . . 132 . . . . Slashing . | . . . . . . . . . . . . Piercing . | . . . . . . . . . . . . Highest Corruption 6 | . . . . . . 6 6 6 6 6 2 Average Corruption 5 | . . . . . . 5 6 6 6 6 1 Corruption Purged . | . . . . . . . . . . . . Corruption Blocked . | . . . . . . . . . . . . Effects 177 | . . . . . . 19 48 51 10 48 1 Message Errors 51 | . . . . . . 6 17 14 3 10 1 Matter Fused 44 | . . . . . . 4 8 14 3 15 . Heat Flow Errors 24 | . . . . . . 2 8 9 2 3 . Energy Discharges 24 | . . . . . . 2 6 6 1 9 . Parts Rejected 1 | . . . . . . . 1 . . . . Parts Fused 2 | . . . . . . 2 . . . . . Data Loss (minor) 19 | . . . . . . 1 4 6 1 7 . Data Loss (major) 8 | . . . . . . 2 . 2 . 4 . Alerts 4 | . . . . . . . 4 . . . . Overload Shots . | . . . . . . . . . . . . Overflow Damage 82 | . . . . . . . 82 . . . . Projectiles 82 | . . . . . . . 82 . . . . Explosions . | . . . . . . . . . . . . Melee . | . . . . . . . . . . . . Knockbacks 10 | . 2 8 . . . . . . . . . Impact . | . . . . . . . . . . . . Kinetic 10 | . 2 8 . . . . . . . . . Secondary . | . . . . . . . . . . . . Self-Inflicted Damage . | . . . . . . . . . . . . Shots . | . . . . . . . . . . . . Rammed . | . . . . . . . . . . . . Targets Rammed . | . . . . . . . . . . . . Kicked . | . . . . . . . . . . . . Crushed . | . . . . . . . . . . . . Highest Temperature 276 | . 24 6 . . 56 244 227 276 199 216 . Average Temperature 99 | . 14 3 . . 32 116 103 116 95 100 . Received Heat Transfer 772 | . 60 246 . . 27 21 9 189 . 187 33 Effects 3 | . . . . . . . . 3 . . . Interference 3 | . . . . . . . . 3 . . . Siege Activations . | . . . . . . . . . . . . Martial Activations . | . . . . . . . . . . . . Shielding Activations . | . . . . . . . . . . . . Robots Disrupted . | . . . . . . . . . . . . Combat Hostiles . | . . . . . . . . . . . . Robots Corrupted 1 | . . . . . 1 . . . . . . Combat Hostiles 1 | . . . . . 1 . . . . . . Parts Fried 5 | . . . . . 3 . 2 . . . . Impact Corruptions 2 | . . . . . . . 2 . . . . Robots Melted . | . . . . . . . . . . . . Combat Hostiles . | . . . . . . . . . . . . Parts Melted 1 | . . 1 . . . . . . . . . Heat Transferred 350 | 50 25 275 . . . . . . . . . Parts Sabotaged . | . . . . . . . . . . . . Parts Stolen . | . . . . . . . . . . . . Parts Stripped . | . . . . . . . . . . . . Power Chain Reactions 3 | . . . . . 3 . . . . . . Alert | -11 -10 -10 -8 -6 -6 -5 -5 -5 -5 -4 -4 ------- Run | Yrd Mat Sub Scr Fac DSF Fac Upp Upp Zhi Pro Fac Maximum Alert Level 1 | . . . . . 1 . . . . . 1 Low Security (%) 94 | 100 100 . . 100 74 100 . . . . 84 Level 1 5 | . . . . . 25 . . . . . 15 Level 2 . | . . . . . . . . . . . . Level 3 . | . . . . . . . . . . . . Level 4 . | . . . . . . . . . . . . Level 5 . | . . . . . . . . . . . . High Security . | . . . . . . . . . . . . Max Security . | . . . . . . . . . . . . Sterilizations 1 | . . . . . 1 . . . . . . Peak Influence 223 | 15 104 . . . 213 196 . . . . 223 Initial 111 | . . . . . 3 111 . . . . . Average 57 | 2 25 . . . 105 56 . . . . 114 Influence Increases 2165 | 20 244 . . 5 243 375 246 277 . 284 471 Destroy 0b10 Robot/C 1260 | . 120 . . . 160 240 200 180 . 200 160 Destroy 0b10 Robot/NC 90 | 20 40 . . . . 15 . . . 5 10 Destroy Leader 216 | . 30 . . . 30 44 10 20 . 10 72 Allied During Kill 415 | . . . . . 3 72 36 77 . 69 158 Successful Hack 23 | . 17 . . 5 . . . . . . 1 Disable Machine 90 | . 15 . . . 15 . . . . . 60 Destroy Structure 41 | . 22 . . . 5 4 . . . . 10 Lose Combat Pursuer 30 | . . . . . 30 . . . . . . Influence Decreases 2125 | 20 244 . . . 35 436 398 255 22 284 431 Entered New Map 183 | . . . . . 2 102 57 . 22 . . Time Decay 1517 | 20 244 . . . . 284 341 190 . 177 261 Lost Part 107 | . . . . . 30 10 . 10 . 27 30 Lost Ally 318 | . . . . . 3 40 . 55 . 80 140 Squads Dispatched 10 | . 1 . . . 3 3 . . . 1 2 Investigation 1 | . . . . . . . . . . . 1 Extermination 3 | . . . . . . 2 . . . . 1 Reinforcement 5 | . 1 . . . 3 1 . . . . . Assault 1 | . . . . . . . . . . 1 . Garrison . | . . . . . . . . . . . . Intercept . | . . . . . . . . . . . . Searches Triggered . | . . . . . . . . . . . . Construction Impeded . | . . . . . . . . . . . . Haulers Reinforced . | . . . . . . . . . . . . Active Scanning Responses . | . . . . . . . . . . . . Cargo Convoy Interrupts 1 | . . . . . . 1 . . . . . Stealth | -11 -10 -10 -8 -6 -6 -5 -5 -5 -5 -4 -4 --------- Run | Yrd Mat Sub Scr Fac DSF Fac Upp Upp Zhi Pro Fac Distress Signals 4 | . 2 . . . 1 1 . . . . . Communications Jammed . | . . . . . . . . . . . . Distress Signals . | . . . . . . . . . . . . Times Spotted 105 | . 11 8 . . 14 20 10 11 . 17 14 Peak Tracking Total 9 | . 2 3 . . 4 5 2 5 . 9 8 Tactical Retreats 2 | . . . . . 2 . . . . . . Traps | -11 -10 -10 -8 -6 -6 -5 -5 -5 -5 -4 -4 ------- Run | Yrd Mat Sub Scr Fac DSF Fac Upp Upp Zhi Pro Fac Traps Triggered 1 | . . . . . . 1 . . . . . Indirectly . | . . . . . . . . . . . . Trap Hack Attempts . | . . . . . . . . . . . . Triggered . | . . . . . . . . . . . . Disarmed . | . . . . . . . . . . . . Reprogrammed . | . . . . . . . . . . . . Reused . | . . . . . . . . . . . . Traps Extracted . | . . . . . . . . . . . . Installed . | . . . . . . . . . . . . Triggered . | . . . . . . . . . . . . Machines | -11 -10 -10 -8 -6 -6 -5 -5 -5 -5 -4 -4 ---------- Run | Yrd Mat Sub Scr Fac DSF Fac Upp Upp Zhi Pro Fac Machines Disabled 9 | . 1 1 . . 1 . . 2 . . 4 Max in Single Turn 1 | . 1 1 . . 1 . . 1 . . 1 Garrison Access 1 | . . . . . . 1 . . . . . Machines Repaired . | . . . . . . . . . . . . Machines Dismantled . | . . . . . . . . . . . . Machines Sabotaged . | . . . . . . . . . . . . Overloaded Fab Kills . | . . . . . . . . . . . . Hacking | -11 -10 -10 -8 -6 -6 -5 -5 -5 -5 -4 -4 --------- Run | Yrd Mat Sub Scr Fac DSF Fac Upp Upp Zhi Pro Fac Machines Accessed 20 | . 7 1 3 1 . 1 1 . 4 . 2 Terminals 9 | . 7 . . 1 . . . . . . 1 Fabricators . | . . . . . . . . . . . . Repair Stations . | . . . . . . . . . . . . Recycling Units . | . . . . . . . . . . . . Scanalyzers . | . . . . . . . . . . . . Garrison Access 2 | . . . . . . 1 . . . . 1 Total Hacks 58 | . 12 1 18 1 . 1 1 . 17 . 7 Successful 52 | . 9 1 18 1 . 1 1 . 17 . 4 Failed 6 | . 3 . . . . . . . . . 3 Catastrophic 1 | . . . . . . . . . . . 1 Database Lockouts . | . . . . . . . . . . . . Manual 14 | . 12 . . . . . . . . . 2 Terminals 18 | . 12 . . 1 . . . . . . 5 Fabricators . | . . . . . . . . . . . . Repair Stations . | . . . . . . . . . . . . Recycling Units . | . . . . . . . . . . . . Scanalyzers . | . . . . . . . . . . . . Garrison Access 3 | . . . . . . 1 . . . . 2 Terminal Hacks 40 | . . 1 18 1 . . 1 . 17 . 2 Record 22 | . . . 17 . . . . . 5 . . Part Schematic 4 | . . . . . . . . . 4 . . Robot Analysis 4 | . . . . . . . . . 4 . . Prototype ID Bank 4 | . . . . . . . . . 4 . . Open Door 1 | . . . . . . . 1 . . . . Open DSF 1 | . . . . 1 . . . . . . . Alert Level 1 | . . . . . . . . . . . 1 Recall Investigation 1 | . . . . . . . . . . . 1 Proto ID Catalog 2 | . . 1 1 . . . . . . . . Fabricator Hacks . | . . . . . . . . . . . . Repair Station Hacks . | . . . . . . . . . . . . Recycling Unit Hacks . | . . . . . . . . . . . . Scanalyzer . | . . . . . . . . . . . . Garrison Access Hacks 1 | . . . . . . 1 . . . . . Seal Access 1 | . . . . . . 1 . . . . . Unauthorized Hacks 11 | . 9 . . . . . . . . . 2 Terminals 11 | . 9 . . . . . . . . . 2 Botnet 5 | . 4 . . . . . . . . . 1 Skim 6 | . 5 . . . . . . . . . 1 Fabricators . | . . . . . . . . . . . . Repair Stations . | . . . . . . . . . . . . Recycling Units . | . . . . . . . . . . . . Scanalyzers . | . . . . . . . . . . . . Garrison Access . | . . . . . . . . . . . . Data Cores Recovered . | . . . . . . . . . . . . Used . | . . . . . . . . . . . . Hacking Detections 6 | . 5 . . . . . . . . . 1 Full Trace Events 1 | . . . . . . . . . . . 1 Feedback Events . | . . . . . . . . . . . . Feedback Blocked . | . . . . . . . . . . . . Robot Schematics Acquired . | . . . . . . . . . . . . Robots Built . | . . . . . . . . . . . . Authchips . | . . . . . . . . . . . . Time . | . . . . . . . . . . . . Total Robot Build Rating . | . . . . . . . . . . . . Part Schematics Acquired 4 | . . . . . . . . . 4 . . Parts Built . | . . . . . . . . . . . . Authchips . | . . . . . . . . . . . . Time . | . . . . . . . . . . . . Total Part Build Rating . | . . . . . . . . . . . . Part Studies Acquired . | . . . . . . . . . . . . Parts Repaired . | . . . . . . . . . . . . Time . | . . . . . . . . . . . . Parts Recycled . | . . . . . . . . . . . . Recycled Matter . | . . . . . . . . . . . . Retrieved Matter . | . . . . . . . . . . . . Retrieved Components . | . . . . . . . . . . . . Parts Scanalyzed . | . . . . . . . . . . . . Part Schematics Acquired . | . . . . . . . . . . . . Parts Damaged . | . . . . . . . . . . . . Bothacking | -11 -10 -10 -8 -6 -6 -5 -5 -5 -5 -4 -4 ------------ Run | Yrd Mat Sub Scr Fac DSF Fac Upp Upp Zhi Pro Fac Used RIF Installer . | . . . . . . . . . . . . Robots Hacked . | . . . . . . . . . . . . Non-combat . | . . . . . . . . . . . . Combat . | . . . . . . . . . . . . Robot Hacks Applied . | . . . . . . . . . . . . Relay Couplers Released . | . . . . . . . . . . . . Fabnet Peak Effective % . | . . . . . . . . . . . . Robots Rewired 2 | . . . . . . . . . . 2 . Allies Hacked 3 | . . . . . . . . . . . 3 Hacks Repelled . | . . . . . . . . . . . . Allies | -11 -10 -10 -8 -6 -6 -5 -5 -5 -5 -4 -4 -------- Run | Yrd Mat Sub Scr Fac DSF Fac Upp Upp Zhi Pro Fac Total Allies 2 | . . . . . . . . . . 2 . Largest Group 2 | . . . . . . . . . . 2 2 Highest-Rated Group 77 | . . . . . . . . . . 77 77 Highest-Rated Ally 47 | . . . . . . . . . . 47 47 Initial UFD Resources 29 | . . . . 24 24 26 26 26 26 29 29 Total Orders . | . . . . . . . . . . . . Ally Attacks 289 | . . . . . 4 39 17 58 . 76 95 Total Damage 8432 | . . . . . 49 1535 930 1552 . 1468 2898 Kills 56 | . . . . . 1 15 8 9 . 12 11 Allies Corrupted 5 | . . . . . . 1 . . . 1 3 Allies Melted 1 | . . . . . . . . 1 . . . Borg Created 25 | . . . . . 3 8 3 2 . 7 2 Largest Collective 5 | . . . . . 1 3 5 4 . 5 2 Intel | -11 -10 -10 -8 -6 -6 -5 -5 -5 -5 -4 -4 ------- Run | Yrd Mat Sub Scr Fac DSF Fac Upp Upp Zhi Pro Fac Active Infowar (turns) 15653 | 20 1085 2841 3954 90 259 992 1826 2031 412 1548 595 Sensors 6747 | . . . . . . 394 1826 1972 412 1548 595 Terrain 7269 | . . . . 81 259 992 1826 2031 412 1548 120 Seismic 8848 | 20 1085 2841 3954 90 259 598 . . 1 . . Robot Analysis Total 4 | . . . . . . . . . 4 . . Derelict Logs Recovered 12 | . . . 5 . . . 1 3 . 3 . Drone Launches . | . . . . . . . . . . . . Drone Recoveries . | . . . . . . . . . . . . Exploration | -11 -10 -10 -8 -6 -6 -5 -5 -5 -5 -4 -4 ------------- Run | Yrd Mat Sub Scr Fac DSF Fac Upp Upp Zhi Pro Fac Turns Passed 16197 | 110 1085 3295 3954 90 259 992 1826 2031 412 1548 595 Spaces Moved 6354 | 54 380 1257 1690 38 81 306 677 757 188 661 265 Core 12 | 12 . . . . . . . . . . . Treads 3307 | 42 380 1257 1440 . . 15 . 105 68 . . Legs 1110 | . . . . . . 64 . . 120 661 265 Wheels 1925 | . . . 250 38 81 227 677 652 . . . Hover . | . . . . . . . . . . . . Flight . | . . . . . . . . . . . . Fastest Speed 50 | 50 160 240 165 165 155 140 260 235 190 190 190 Average Speed 230 | 136 191 240 231 221 194 271 260 258 207 190 190 Slowest Speed 545 | 160 240 240 250 225 240 545 260 545 330 190 190 Overloaded Moves . | . . . . . . . . . . . . Propulsion Burnouts . | . . . . . . . . . . . . Robots Hopped . | . . . . . . . . . . . . Potential Cave-ins 3 | . . . . . . . . 3 . . . Cave-ins Triggered . | . . . . . . . . . . . . Exploration Rate (%) 50 | 4 75 59 87 1 41 12 71 93 62 83 13 Regions Visited 11 Branch Regions 6 Pre-discovered Areas 8 | . 1 . 4 . . . . . 3 . . Known Exits Taken 3 | . . . . 1 . . . 1 . 1 . Unknown Exits Taken 7 | 1 1 1 1 . . 1 1 . 1 . . Scrap Searched 15 | . . 2 7 . . . 3 1 . 2 . Spaces Dug 9 | . . . . . . 1 3 5 . . . Terrain Destroyed 48 | . 31 . . . 8 1 3 5 . . . Melee . | . . . . . . . . . . . . Projectile 9 | . . . . . . 1 3 5 . . . AOE 39 | . 31 . . . 8 . . . . . . Terrain Rammed . | . . . . . . . . . . . . Walls Destroyed . | . . . . . . . . . . . . Machines Disabled . | . . . . . . . . . . . . Actions | -11 -10 -10 -8 -6 -6 -5 -5 -5 -5 -4 -4 --------- Run | Yrd Mat Sub Scr Fac DSF Fac Upp Upp Zhi Pro Fac Total 7680 | 82 702 1439 1741 45 164 453 734 816 214 941 349 Wait 928 | 5 288 95 . . 64 108 36 33 5 242 52 Move 6343 | 53 379 1256 1689 37 80 305 676 756 187 660 265 Hop . | . . . . . . . . . . . . Pick Up 111 | 13 8 16 21 1 2 13 9 8 3 6 11 Fast Attach 8 | 1 . . 1 . . . . . 6 . . Attach 54 | 6 1 5 1 6 3 13 2 5 2 5 5 Detach 1 | . . . . . . . . . 1 . . Swap 14 | . 4 3 5 . . . 1 . . . 1 Drop 65 | . 4 8 23 1 . 5 2 1 10 2 9 Fire 107 | 4 18 56 . . 11 1 5 11 . . 1 Melee . | . . . . . . . . . . . . Ram . | . . . . . . . . . . . . Kick . | . . . . . . . . . . . . Crush . | . . . . . . . . . . . . Escape Stasis . | . . . . . . . . . . . . Rewire 20 | . . . 1 . 1 . . . . 18 . Trap . | . . . . . . . . . . . . Miscellaneous 29 | . . . . . 3 8 3 2 . 8 5 Route ------- -11/Scrapyard -10/Materials (discovered 3 exits: [*Mat x2] / *Sub) -10/Subcaves (discovered 3 exits: [*Mat x2] / *Scr) -8/Scraptown (discovered 2 exits: *Fac x2) -6/Factory -6/DSF -5/Factory -5/Upper Caves -5/Upper Caves (discovered 2 exits: Fac / *Zhi) -5/Zhirov -4/Proximity Caves -4/Factory (discovered 1 exit: Res) History --------- Turn | Location | Event 21 | -11/Scrapyard | Discovered new exit (range 16) 111 | -11/Scrapyard | Entered Materials 311 | -10/Materials | Build established: Mutant 363 | -10/Materials | Discovered new exit (range 5) 574 | -10/Materials | Discovered new exit (range 8) 611 | -10/Materials | Derelicts attacked the area 1172 | -10/Materials | Learned location of Mines (-8) 1177 | -10/Materials | Discovered new exit (range 9) 1196 | -10/Materials | Entered Subcaves 1197 | -10/Subcaves | Approached by a straggling Scientist 1246 | -10/Subcaves | Discovered new exit (range 2) 1282 | -10/Subcaves | Discovered new exit (range 16) 1499 | -10/Subcaves | Scientist uncovered a shortcut to Scraptown 1690 | -10/Subcaves | Core integrity fell below 50% 1694 | -10/Subcaves | Lost 3 parts (1p1n1w) 2031 | -10/Subcaves | Build established: Scavenger-Mutant 2490 | -10/Subcaves | Shifting Twisted Machinery released Sub. Laser 2613 | -10/Subcaves | Shifting Twisted Machinery released Battle Cannon 4049 | -10/Subcaves | Visited 4L-MR0's lab 4074 | -10/Subcaves | Found Prototype Special Melee Weapon 4086 | -10/Subcaves | Found Rainbow Chip 4491 | -10/Subcaves | Entered Scraptown 4556 | -8/Scraptown | Heard Great Nut preacher, LISTEN AND RECITE! 4719 | -8/Scraptown | Visited Fellowship of the Rings 4770 | -8/Scraptown | Visited Scrapoid Research Area 5227 | -8/Scraptown | Discovered new exit (range 11) 5359 | -8/Scraptown | Scanned Subdweller tech in exchange for log data 5364 | -8/Scraptown | Learned location of Extension (-4) 5366 | -8/Scraptown | Learned location of Testing (-3) 5371 | -8/Scraptown | Learned Research terminal intel 5373 | -8/Scraptown | Learned location of Warlord (-4) 5512 | -8/Scraptown | Visited CR-KLE's Repair Center 5532 | -8/Scraptown | Visited Shadow of the Wyrm 5575 | -8/Scraptown | Visited Symbiants 5637 | -8/Scraptown | Visited Cyclists 5671 | -8/Scraptown | Visited Awakened 5692 | -8/Scraptown | Visited UFD Registry 5692 | -8/Scraptown | Registered with UFD as "Deathspreader" 5750 | -8/Scraptown | Visited Scrap Suit Storage 5812 | -8/Scraptown | Visited Science Guys 5892 | -8/Scraptown | Visited Scrapoid Pod Storage 5949 | -8/Scraptown | Visited Derelict Rescue Squad 6006 | -8/Scraptown | Visited DA-N13 Charitable Foundation 6027 | -8/Scraptown | Found DCF Scrap (27 items) 6068 | -8/Scraptown | Visited Infowarlord's Domain 6109 | -8/Scraptown | Visited Modified Component R&D 6198 | -8/Scraptown | Visited Junk Repository 6256 | -8/Scraptown | Build established: Mutant 6274 | -8/Scraptown | Visited LU-1G1's Boring Crew 6320 | -8/Scraptown | Visited Junk Cannon Lab 6332 | -8/Scraptown | Found Prototype Special Weapon 6333 | -8/Scraptown | Identified Junk Cannon 6701 | -8/Scraptown | Found DRS Beacon 7246 | -8/Scraptown | Entered Cyclist Reading Room 8089 | -8/Scraptown | Found Exp. Terrain Scan Processor 8330 | -8/Scraptown | Build established: Derelict-Mutant 8437 | -8/Scraptown | Discovered new exit (range 5) 8445 | -8/Scraptown | Entered Factory 8445 | -6/Factory | Evolved 8 slots: Power x1, Utility x3, Weapon x4 8450 | -6/Factory | Attached Rainbow Chip, gained temporary slots: Power, Propulsion, Utility, Weapon 8450 | -6/Factory | Identified 1B-0RG's Assimilator 8535 | -6/Factory | Identified exit to DSF 8535 | -6/Factory | Entered DSF 8545 | -6/DSF | Assembled infested the area 8545 | -6/DSF | Assimilating Marksman 5a into Collective. 8570 | -6/DSF | Additional patrols routed to DSF 8601 | -6/DSF | Discovered new exit (range 23) 8615 | -6/DSF | Assimilating Grenadier 5a into Collective. 8722 | -6/DSF | Sterilization system engaged 8739 | -6/DSF | Lost 3 parts (1n1u1w) 8742 | -6/DSF | Ambient heat levels rising (+10) 8757 | -6/DSF | Ambient heat levels rising (+10) 8765 | -6/DSF | Assimilating Slayer 5a into Collective. 8772 | -6/DSF | Ambient heat levels rising (+10) 8787 | -6/DSF | Ambient heat levels rising (+10) 8794 | -6/DSF | Entered Factory 8794 | -5/Factory | Accompanied by 1 ally 8794 | -5/Factory | Evolved 2 slots: Propulsion x1, Utility x1 8971 | -5/Factory | Assimilating Virus 6a into Collective. 8974 | -5/Factory | Assimilating Virus 6b into Collective. 8977 | -5/Factory | Assimilating Virus 6c into Collective. 9020 | -5/Factory | Lost 3 allies 9141 | -5/Factory | Assimilating Soldier 6a into Collective. 9146 | -5/Factory | Assimilating Virus 6d into Collective. 9153 | -5/Factory | Assimilating Warrior 6a into Collective. 9166 | -5/Factory | Assimilating Sage 6a into Collective. 9186 | -5/Factory | Lost 3 allies 9193 | -5/Factory | Lost 3 parts (2n1u) 9258 | -5/Factory | Assimilating Slayer 6a into Collective. 9502 | -5/Factory | Cargo convoy interrupted 9707 | -5/Factory | Discovered new exit (range 16) 9786 | -5/Factory | Entered Upper Caves 9786 | -5/Upper Caves | Accompanied by 2 allies 9833 | -5/Upper Caves | Attracted the attention of an 0b10 checkpoint 9916 | -5/Upper Caves | Build established: Scavenger-Assassin 10392 | -5/Upper Caves | Encountered a Warlord checkpoint 10438 | -5/Upper Caves | Assimilating 7T-27M(S) into Collective. 10535 | -5/Upper Caves | Assimilating Veteran 6a into Collective. 11390 | -5/Upper Caves | Learned location of 1 exit from Factory 11523 | -5/Upper Caves | Discovered new exit (range 11) 11539 | -5/Upper Caves | Assimilating JB-CWQ(S) into Collective. 11612 | -5/Upper Caves | Entered another Upper Caves area 11612 | -5/Upper Caves | Accompanied by 5 allies 11646 | -5/Upper Caves | Spotted B-75 Beast 11651 | -5/Upper Caves | Allies destroyed B-75 Beast 11709 | -5/Upper Caves | Discovered new exit (range 14) 12159 | -5/Upper Caves | Identified exit to Zhirov 12505 | -5/Upper Caves | Learned location of 1 exit from Proximity Caves 12511 | -5/Upper Caves | Encountered a Warlord checkpoint 13325 | -5/Upper Caves | Attracted the attention of an 0b10 base 13337 | -5/Upper Caves | Assimilating Soldier 6b into Collective. 13343 | -5/Upper Caves | Assimilating Soldier 6c into Collective. 13374 | -5/Upper Caves | Lost 4 allies 13376 | -5/Upper Caves | Lost 3 parts (2n1u) 13643 | -5/Upper Caves | Entered Zhirov 13643 | -5/Zhirov | Accompanied by 3 allies 13643 | -5/Zhirov | Discovered new exit (range 3) 13686 | -5/Zhirov | Met Zhirov 13693 | -5/Zhirov | Build established: Scavenger-Mutant 13740 | -5/Zhirov | Found Alien Artifact 13742 | -5/Zhirov | Identified Integrated Dissipator 13742 | -5/Zhirov | Installed Integrated Dissipator, increased core heat dissipation (+20) 13900 | -5/Zhirov | Learned location of Command (-1) 13900 | -5/Zhirov | Learned location of Quarantine (-2) 13911 | -5/Zhirov | Zhirov requested help retrieving the SGEMP Prototype 13979 | -5/Zhirov | Found Alien Artifact 14035 | -5/Zhirov | Build established: Hacker-Mutant 14055 | -5/Zhirov | Entered Proximity Caves 14055 | -4/Proximity Caves | Accompanied by 3 allies 14056 | -4/Proximity Caves | Identified exit to Factory 14164 | -4/Proximity Caves | Attracted the attention of an 0b10 checkpoint 14689 | -4/Proximity Caves | Attracted the attention of an 0b10 outpost 14690 | -4/Proximity Caves | Activated DRS Beacon 14694 | -4/Proximity Caves | Assimilating Warden 7a into Collective. 14705 | -4/Proximity Caves | Assimilating Veteran 7a into Collective. 14714 | -4/Proximity Caves | Assimilating Warrior 7a into Collective. 14724 | -4/Proximity Caves | Assimilating Veteran 7b into Collective. 14731 | -4/Proximity Caves | Assimilating Veteran 7c into Collective. 14759 | -4/Proximity Caves | Lost 4 allies 14762 | -4/Proximity Caves | Lost 5 parts (1p4u) 14809 | -4/Proximity Caves | Assimilating J8-DFA(h) into Collective. 14814 | -4/Proximity Caves | Assimilating JR-AEP(h) into Collective. 14985 | -4/Proximity Caves | Build established: Mutant 15603 | -4/Proximity Caves | Entered Factory 15603 | -4/Factory | Accompanied by 7 allies 15603 | -4/Factory | Evolved 2 slots: Propulsion x2 15604 | -4/Factory | Identified exit to Research 15855 | -4/Factory | Found Quantum Capacitor 15885 | -4/Factory | Spotted B-86 Titan 15906 | -4/Factory | Allies destroyed B-86 Titan 16171 | -4/Factory | Assimilating Sage 7a into Collective. 16176 | -4/Factory | Assimilating Sage 7b into Collective. 16198 | -4/Factory | Self-destructed Last Messages --------------- 16188_ Extracted 15 matter. 16188_ 1B-0RG's Assimilator injection rejected by P-70 Sage. 16190_ R-10 Processor collects Corrupted Lgt. Antimatter Reactor. 16191_ Acquired Com. Matter Pod. 16193_ Borg Sage 7a assimilation complete, grew Sfc. Borg Pulseblaster, Sfc. Personal Shield. 16194_ K-01 Serf collects debris. 16194_ Destroyed Imp. Heat Sink. 16194_ K-01 Serf latches onto Borg Sage 7b. 16194_ K-01 Serf pushes Borg Sage 7b. 16196_ Borg Sage 7a destroyed. 16196_ Core damaged by loss of Borg Sage 7a (-12). 16196_ K-01 Serf pushes Borg Sage 7b. 16196_ Acquired 52 matter. 16197_ P>ALOWZ1NRWR YT|33FDVBCVLMXY=YT 16197_ K-01 Serf pushes Borg Sage 7b. 16198_ Borg Sage 7b assimilation complete, grew Unknown Ballistic Cannon, Sfc. Sightfinder. 16198_ Com. Matter Pod destroyed. 16198_ Imp. Medium Armor Plating destroyed. Map ----- +----------------------------------------------------+ | ?????????????????????????????????????????????????? | | ?????????????????????????????????????????????????? | | ?????????????????????????????????????????????????? | | ?????????????????????????????????????????????????? | | ?????????????????????????????????????????????????? | | ?????????????????????????????????????????????????? | | ?????????????????????????????????????????????????? | | ?????????????????????????????????????????????????? | | ?????????????????????????????????????????????????? | | ??????????????????????? ???????????? ?????????? | | ??????????????????????? #?????????? ?????????? | | ??????????????????????# #?????????? ????????? | | ??????????????????????# #?????????? ????????? | | ??????????????????????# #?????????? ????????? | | ??????????????????????# ###########/########## | | ?????????????#????????# # | | ?????????????# ???????# " | | ?????????????# ??????# | | ?????????????# !!?????# " | | ???????????????!!!????# p ^ """"""" """"""" # | | ?????????????????! ???# k w """"""" """"""" # | | ???????????????####/### """"""" """"""" # | | ???????????????# """ "" """"""" | | ???????????????# % g u | | ???????????????# % % % gk | | ???????????????# =@ R g | | ?????????! ku w p! m | | ??????????########+#####;;;;##"T"##"" """#####+### | | ??????????????????? #####"""##""G""# | | ?????????????????"""""" #???############ """ | | ?????????????????? =#??????????????? ""R" | | ?????????????????"""""" #??????????????# "" " """ | | ????????????????? #???????????????? """ | | ?????????????????"""""" #???????????????? """ | | ?????????????????? ????????????????? | | ????????????????????""" ???????????????????"" """ | | ???????????????????? ???????????????????"" """ | | ?????????????????????"" ????????????????????" """ | | ?????????????????????? ????????????????? | | ?????????????????????? ???????????????# | | ???????????????????????##???????????????########## | | ?????????????????????????????????????????????????? | | ?????????????????????????????????????????????????? | | ?????????????????????????????????????????????????? | | ?????????????????????????????????????????????????? | | ?????????????????????????????????????????????????? | | ?????????????????????????????????????????????????? | | ?????????????????????????????????????????????????? | | ?????????????????????????????????????????????????? | | ?????????????????????????????????????????????????? | +----------------------------------------------------+ Best States ------------- Heat Dissipation 63 Energy Generation 39 Energy Capacity 555 Matter Stores 450 Matter Capacity 450 Sight Range 16 Robot Scan Range 18 Terrain Scan Range 16 Terrain Scan Density 1010 Armor Coverage 375 Evasion (%) 50 Recoil Reduction 3 Offensive Hacking 23 Item Schematics ----------------- Exp. Heat Sink | -5/Zhirov | Free Imp. Arc Thrower | -5/Zhirov | Free Exp. Optical Array | -5/Zhirov | Free Assault Drone Bay | -5/Zhirov | Free Robot Schematics ------------------ None Fabricated ------------ Nothing Repaired ---------- Nothing Studied --------- None Alien Tech Used ----------------- Integrated Dissipator Achievements -------------- Executioner I, Locutus Challenges ------------ None Game ------ Seed HardlightLaserMembrane Manual? 0 Play Time 01:05:54 Cumulative 239.1 hours Start 2026.02.18 @ 12:32:04 End 2026.02.22 @ 15:47:03 Sessions 7 Manual Loads 0 Difficulty Rogue Special Mode None Game No. 331 Rogue 331 Adventurer 0 Explorer 0 Win Type - Total 4 Types 2/0/0/1/0/0/0/0/0/1 Lore% 76 Gallery% 73 Achievement% 54 Wizard Run 0 Options --------- Layout 0 ASCII 0 Keyboard 0 Movement Mouse Keybinds 0 Fullscreen 1 Font 16/SmallcapsGlow Map View 75x55 Zoom Use 0% Tactical HUD 1 Map Filters NONE Filters NONE Steam 1 RUN: 9ff5b104-be9d-40b2-b53f-2192e240fb88